bitfinex-derivatives/quotes_ETHF0:USTF0_20240920
["timestamp","ask_amount","ask_price","bid_price","bid_amount"]
[1726822886006,0.3926,2546.7,2546.6,0.3988]
[1726822886205,0.77689,2546.8,2546.6,0.3988]
[1726822887911,3.6004,2546.7,2546.6,0.3988]
[1726822888818,3.2078,2546.7,2546.6,0.3988]
[1726822889008,3.6004,2546.7,2546.6,0.3988]
[1726822892318,3.6004,2546.7,2546.4,0.3892]
[1726822892520,3.6004,2546.7,2546.5,0.3875]
[1726822893322,3.2078,2546.7,2546.5,0.3875]
[1726822894411,3.60041,2546.7,2546.5,0.3875]
[1726822897622,0.39263,2546.6,2546.2,4.2361492]
[1726822897923,0.767,2546.5,2546.3,0.39266]
[1726822898221,1.15964,2546.5,2546.2,3.99657]
[1726822898423,0.767,2546.5,2546.2,3.99657]
[1726822898724,1.15963,2546.5,2546.2,3.99657]
[1726822898913,0.767,2546.5,2546.2,3.99657]
[1726822900212,0.3786,2546.5,2546.2,0.78877]
[1726822900514,0.77123,2546.5,2546.2,0.78877]
[1726822901825,0.77124,2546.5,2546.2,0.3961]
[1726822902026,0.77124,2546.5,2546.2,0.78878]
[1726822903114,3.5864,2546.5,2546.1,0.7736]
[1726822903322,0.3749,2546.4,2546.1,0.7736]
[1726822903523,0.77927,2546.3,2546.1,0.7736]
[1726822903724,0.3866,2546.3,2546.1,0.7736]
[1726822904018,0.4065,2546.2,2546.1,0.7736]
[1726822905516,0.4065,2546.2,2546.1,1.16629]
[1726822906163,0.4065,2546.2,2546.1,0.7736]
[1726822911626,0.4065,2546.2,2546.1,1.16629]
[1726822911829,0.4065,2546.2,2546.1,2.1946392]
[1726822912122,0.4065,2546.2,2546.1,1.8019492]
[1726822912326,0.4065,2546.2,2546.1,0.7736]
[1726822915426,0.4065,2546.2,2546.1,1.16629]
[1726822916435,0.3749,2546.4,2546.3,0.39266]
[1726822916738,1.15402,2546.7,2546.4,0.39265]
[1726822916938,0.39262,2546.6,2546.5,0.7951]
[1726822920535,1.15401,2546.7,2546.5,0.7951]
[1726822921126,0.39262,2546.6,2546.5,0.7951]
[1726822922028,0.39262,2546.6,2546.3,1.0283492]
[1726822922230,0.39262,2546.6,2546.3,1.8156092]
[1726822923434,0.7614,2546.7,2546.3,1.8156092]
[1726822923636,0.39262,2546.6,2546.3,1.8156092]
[1726822925535,0.39262,2546.6,2546.4,1.0283492]
[1726822928034,0.39262,2546.6,2546.5,1.0283492]
[1726822928432,0.39262,2546.6,2546.4,1.0283492]
[1726822928636,0.39262,2546.6,2546.5,1.0283492]
[1726822930639,0.39262,2546.6,2546.5,2.7702076]
[1726822931645,0.39262,2546.6,2546.5,3.28615496]
[1726822932137,0.39262,2546.6,2546.5,1.7418584]
[1726822932441,0.39262,2546.6,2546.5,3.28615496]
[1726822933740,0.3808,2546.7,2546.5,3.28615496]
[1726822933933,3.2078,2546.8,2546.6,3.67925496]
[1726822934132,0.7739,2547.0,2546.7,2.9139484]
[1726822934332,0.7739,2547.0,2546.8,3.28646436]
[1726822934533,0.7739,2547.0,2546.9,1.74188553]
[1726822934830,0.39251,2547.3,2546.9,3.67905149]
[1726822935028,0.39251,2547.3,2547.1,1.02965711]
[1726822935029,0.3781,2547.3,2547.1,1.02965711]
[1726822935643,0.77062,2547.3,2547.1,1.02965711]
[1726822935843,0.39252,2547.2,2547.1,1.02965711]
[1726822936044,0.77062,2547.3,2547.1,2.77096322]
[1726822936234,0.77062,2547.3,2547.1,1.02965711]
[1726822937138,0.3781,2547.3,2547.1,1.02965711]
[1726822937437,0.77061,2547.3,2547.1,1.02965711]
[1726822938136,0.77061,2547.3,2547.0,0.7682]
[1726822938137,0.77061,2547.3,2547.0,1.79785711]
[1726822938338,0.39253,2547.2,2547.0,1.79785711]
[1726822938542,0.39253,2547.2,2547.0,1.02965711]
[1726822938745,0.7885,2547.1,2547.0,1.02965711]
[1726822938950,1.18104,2547.1,2546.9,1.02965711]
[1726822939248,0.3879,2547.0,2546.9,1.02965711]
[1726822939850,0.78045,2547.0,2546.9,1.02965711]
[1726822940044,0.3879,2547.0,2546.9,1.02965711]
[1726822940551,0.3879,2547.0,2546.9,2.7694134]
[1726822940755,0.3879,2547.0,2546.9,2.76820638]
[1726822941848,0.3879,2547.0,2546.8,0.79437]
[1726822942044,0.3879,2547.0,2546.8,0.4018]
[1726822942640,0.3879,2547.0,2546.8,0.79439]
[1726822943042,0.3879,2547.0,2546.8,0.4018]
[1726822943249,0.3879,2547.0,2546.8,0.79438]
[1726822943983,0.4034,2547.1,2546.8,0.4018]
[1726822944144,4.0096,2547.4,2546.8,3.6096]
[1726822944344,0.39248,2547.6,2547.2,0.39252]
[1726822944542,0.39248,2547.5,2547.3,1.1596]
[1726822945254,0.39247,2547.6,2547.3,1.55211]
[1726822945445,0.39248,2547.5,2547.3,1.1596]
[1726822946144,0.39247,2547.6,2547.3,1.1596]
[1726822946347,0.39247,2547.6,2547.3,1.55211]
[1726822946660,0.39247,2547.6,2547.3,1.1596]
[1726822946845,3.99366,2547.7,2547.3,1.5521]
[1726822947049,3.2078,2547.7,2547.4,0.39249]
[1726822947472,3.2078,2547.7,2547.3,1.1596]
[1726822947473,3.2078,2547.7,2547.5,0.39247]
[1726822947752,3.2078,2547.7,2547.3,1.1596]
[1726822948052,3.2078,2547.7,2547.5,0.39248]
[1726822948250,0.4093,2547.8,2547.5,0.39247]
[1726822948751,0.80173,2547.8,2547.6,0.3862]
[1726822949454,0.4093,2547.8,2547.7,0.773]
[1726822950446,0.79242,2548.0,2547.7,0.773]
[1726822950652,0.39242,2547.9,2547.7,0.773]
[1726822951346,0.39243,2547.8,2547.7,0.773]
[1726822951541,0.39243,2547.9,2547.7,0.773]
[1726822951755,3.2078,2547.8,2547.5,3.18]
[1726822951952,0.3846,2547.7,2547.5,3.18]
[1726822952148,1.16065,2547.7,2547.5,3.18]
[1726822952449,1.16065,2547.7,2547.4,6.3878]
[1726822952747,0.7682,2547.7,2547.4,6.78029]
[1726822954859,1.16065,2547.7,2547.4,6.78029]
[1726822955159,0.7682,2547.7,2547.4,6.78029]
[1726822955650,1.16065,2547.7,2547.4,3.60029]
[1726822955856,1.16065,2547.7,2547.4,3.2078]
[1726822956347,0.39247,2547.6,2547.4,3.2078]
[1726822956558,0.76627,2547.6,2547.4,3.2078]
[1726822956752,0.3738,2547.6,2547.4,3.2078]
[1726822957354,0.76626,2547.6,2547.4,3.2078]
[1726822958270,0.39249,2547.4,2547.0,3.2078]
[1726822958456,0.39253,2547.2,2546.9,3.9642]
[1726822958655,0.39253,2547.2,2546.9,4.35677]
[1726822959148,0.4058,2547.2,2546.9,4.73257]
[1726822959658,0.4058,2547.2,2546.9,4.73256]
[1726822959854,0.79833,2547.2,2546.9,4.34]
[1726822960255,0.79833,2547.2,2546.9,4.73257]
[1726822960765,0.79833,2547.2,2546.9,4.34]
[1726822961056,0.4058,2547.2,2546.9,4.73257]
[1726822962462,0.4058,2547.2,2547.0,0.39255]
[1726822963064,0.801,2547.3,2547.0,0.39255]
[1726822963359,1.19351,2547.3,2547.0,0.39255]
[1726822964256,1.19351,2547.3,2546.9,4.34]
[1726822964257,0.4021,2547.3,2546.9,4.34]
[1726822964454,0.4021,2547.3,2546.9,5.36845009]
[1726822964655,0.4021,2547.3,2547.1,0.39253]
[1726822965052,0.79461,2547.3,2547.1,0.39253]
[1726822965253,0.79462,2547.3,2547.0,0.39255]
[1726822965668,0.39253,2547.2,2546.9,1.165]
[1726822965959,0.3748,2547.2,2546.9,4.73256]
[1726822966161,0.76733,2547.2,2546.9,4.73256]
[1726822966563,0.76733,2547.2,2547.0,0.39255]
[1726822966751,0.76733,2547.2,2546.9,4.73256]
[1726822966950,0.3748,2547.2,2546.9,4.73256]
[1726822967662,0.3748,2547.2,2547.0,0.39254]
[1726822970369,0.4021,2547.3,2547.1,0.39254]
[1726822970663,0.4021,2547.3,2547.1,0.39253]
[1726822970862,3.60029,2547.5,2547.0,1.02845009]
[1726822971166,3.60029,2547.5,2547.2,0.39252]
[1726822971167,0.39249,2547.5,2547.2,0.39252]
[1726822971467,0.39249,2547.4,2547.3,0.8172]
[1726822971659,0.39249,2547.4,2547.3,1.1987]
[1726822971966,4.31809,2547.4,2547.3,1.1987]
[1726822972169,0.78898,2547.5,2547.3,1.1987]
[1726822972361,3.99678,2547.5,2547.3,1.1987]
[1726822975359,0.78898,2547.5,2547.3,1.1987]
[1726822976768,0.39248,2547.5,2547.3,1.1987]
[1726822977065,0.3742,2547.6,2547.3,1.1987]
[1726822977266,0.76667,2547.6,2547.3,1.1987]
[1726822977665,0.76667,2547.6,2547.3,1.5912]
[1726822977956,0.3742,2547.6,2547.3,1.5912]
[1726822978166,0.39245,2547.7,2547.4,0.39249]
[1726822978865,3.5806,2547.8,2547.3,1.1987]
[1726822979171,3.97304,2547.8,2547.3,1.1987]
[1726822979468,3.97304,2547.8,2547.5,0.39247]
[1726822980467,0.39245,2547.7,2547.5,0.39248]
[1726822981363,3.97304,2547.8,2547.5,0.39248]
[1726822981563,3.5806,2547.8,2547.5,0.39248]
[1726822982065,0.39245,2547.7,2547.5,0.39248]
[1726822982264,3.97304,2547.8,2547.5,0.39248]
[1726822982666,0.39245,2547.7,2547.4,3.56748]
[1726822983471,3.97304,2547.8,2547.4,3.56748]
[1726822983691,0.39245,2547.7,2547.4,3.56748]
[1726822983875,4.98159,2548.1,2547.4,3.175]
[1726822984071,0.3861,2548.0,2547.4,3.175]
[1726822984370,0.77851,2548.0,2547.7,0.39243]
[1726822984557,3.6184,2548.1,2547.8,1.1937]
[1726822984761,3.2078,2548.1,2547.9,0.39241]
[1726822984971,3.60019,2548.1,2547.9,0.39241]
[1726822985676,0.3924,2548.0,2547.8,1.58612]
[1726822986371,0.3924,2548.0,2547.8,4.96612]
[1726822986570,0.3924,2548.0,2547.8,1.58612]
[1726822987572,3.2078,2548.1,2547.8,1.1937]
[1726822987880,0.39241,2548.0,2547.8,4.5727]
[1726822988073,0.76651,2548.0,2547.8,4.5727]
[1726822988472,0.76651,2548.0,2547.8,4.96513]
[1726822988778,0.76651,2548.0,2547.8,1.58613]
[1726822988980,0.39242,2547.9,2547.8,1.1937]
[1726822989179,1.14031,2548.0,2547.8,1.1937]
[1726822989676,1.14031,2548.0,2547.7,4.79989009]
[1726822989877,1.54611,2548.0,2547.7,5.60489009]
[1726822990066,1.54611,2548.0,2547.7,4.57644]
[1726822991978,1.54611,2548.0,2547.7,1.19744]
[1726822994078,1.54611,2548.0,2547.7,2.22589009]
[1726822998285,1.54611,2548.0,2547.7,1.19744]
[1726822998481,1.54611,2548.0,2547.7,2.22589009]
[1726822999284,1.54611,2548.0,2547.7,1.19744]
[1726823000683,1.54611,2548.0,2547.7,0.805]
[1726823000888,1.54611,2548.0,2547.7,1.19744]
[1726823001686,1.54611,2548.0,2547.8,0.39243]
[1726823002285,1.14031,2548.0,2547.8,0.39243]
[1726823002786,0.39242,2547.9,2547.7,1.19744]
[1726823002989,0.78762,2547.9,2547.7,1.19744]
[1726823003891,0.78763,2547.9,2547.7,1.19744]
[1726823004190,0.3952,2547.9,2547.7,0.805]
[1726823004482,0.3952,2547.9,2547.7,1.19744]
[1726823004483,0.78762,2547.9,2547.7,1.19744]
[1726823005092,0.3952,2547.9,2547.7,1.19744]
[1726823005484,0.78762,2547.9,2547.7,1.19744]
[1726823006897,0.3952,2547.9,2547.7,0.805]
[1726823007199,1.14031,2548.0,2547.8,0.39243]
[1726823007895,0.7665,2548.0,2547.8,0.39243]
[1726823012495,0.3741,2548.0,2547.8,0.39243]
[1726823012695,0.7665,2548.0,2547.8,0.39243]
[1726823014999,0.3741,2548.0,2547.7,4.129]
[1726823015299,0.76651,2548.0,2547.8,0.39243]
[1726823015490,0.3741,2548.0,2547.9,0.39242]
[1726823016098,3.2078,2548.1,2547.9,0.3924]
[1726823016099,3.60019,2548.1,2547.9,0.3924]
[1726823016298,3.60019,2548.1,2548.0,0.3943]
[1726823016495,3.60019,2548.1,2548.0,0.7818]
[1726823020700,3.2078,2548.1,2548.0,1.1742]
[1726823020999,3.2078,2548.1,2548.0,2.20265009]
[1726823021203,0.3787,2548.2,2548.1,0.39239]
[1726823021400,0.3787,2548.2,2548.1,2.52419092]
[1726823021697,0.3787,2548.2,2548.1,4.06867659]
[1726823022497,0.4062,2548.3,2548.1,4.06867659]
[1726823022697,0.4062,2548.3,2548.2,1.02905801]
[1726823022898,0.4062,2548.3,2548.2,2.77015233]
[1726823023099,4.3302,2548.3,2548.2,3.28557999]
[1726823023494,0.4062,2548.3,2548.2,3.28557999]
[1726823025315,0.4062,2548.3,2548.2,1.74109432]
[1726823025608,1.17235,2548.4,2548.2,1.74101461]
[1726823025806,1.17235,2548.4,2548.3,1.02901157]
[1726823026197,1.17235,2548.4,2548.2,1.02901157]
[1726823026399,0.78,2548.4,2548.2,1.42138157]
[1726823026599,0.78,2548.4,2548.3,1.02901157]
[1726823026910,0.78,2548.4,2548.3,1.40181157]
[1726823029006,1.17234,2548.4,2548.3,1.40181157]
[1726823029207,0.78,2548.4,2548.3,1.40181157]
[1726823030306,1.17234,2548.4,2548.3,1.40181157]
[1726823031097,1.17234,2548.4,2548.3,0.3728]
[1726823031503,0.4046,2548.4,2548.3,0.3728]
[1726823031909,0.4046,2548.4,2548.3,0.76515]
[1726823032510,0.4046,2548.4,2548.3,0.3728]
[1726823032712,3.2078,2548.5,2548.4,0.39234]
[1726823032908,3.2078,2548.5,2548.4,0.78234]
[1726823033608,3.60012,2548.5,2548.4,0.78234]
[1726823034010,3.2078,2548.5,2548.4,0.78234]
[1726823034410,3.60012,2548.5,2548.4,0.78234]
[1726823034813,0.39232,2548.5,2548.4,0.78234]
[1726823035413,0.4077,2548.6,2548.5,0.39232]
[1726823035414,0.80001,2548.6,2548.5,0.39232]
[1726823035718,0.39232,2548.5,2548.4,0.39]
[1726823036516,0.4077,2548.6,2548.4,0.78233]
[1726823036716,0.39232,2548.5,2548.4,0.39]
[1726823036917,0.80002,2548.6,2548.4,0.39233]
[1726823037209,0.4077,2548.6,2548.4,0.39233]
[1726823037519,0.4077,2548.6,2548.3,3.323]
[1726823037520,0.4077,2548.6,2548.5,0.39232]
[1726823037812,0.3822,2548.8,2548.4,0.3967]
[1726823038011,0.77449,2548.8,2548.6,0.39231]
[1726823038208,0.39229,2548.7,2548.6,0.3923]
[1726823038404,0.39229,2548.7,2548.5,1.16711]
[1726823039015,0.39229,2548.7,2548.5,4.49011]
[1726823039918,0.77449,2548.8,2548.6,0.3923]
[1726823040219,0.39229,2548.7,2548.6,0.3923]
[1726823041820,0.3923,2548.7,2548.6,0.3923]
[1726823044704,0.39231,2548.6,2548.5,0.7748]
[1726823044919,0.39234,2548.4,2548.2,6.94516]
[1726823045418,0.39234,2548.4,2548.3,0.39235]
[1726823045620,0.39234,2548.4,2548.2,6.94516]
[1726823046017,1.18193,2548.5,2548.3,0.39235]
[1726823046617,0.39234,2548.4,2548.2,6.94516]
[1726823046821,0.79934,2548.4,2548.2,3.60017]
[1726823051629,0.79934,2548.4,2548.2,3.5844]
[1726823051830,0.79934,2548.4,2548.2,3.97676]
[1726823053629,0.79934,2548.4,2548.2,3.5844]
[1726823053932,0.79934,2548.4,2548.2,3.97676]
[1726823054930,0.407,2548.4,2548.2,3.97676]
[1726823055432,0.4107,2548.5,2548.3,0.39235]
[1726823055730,0.80303,2548.5,2548.3,0.39235]
[1726823056128,0.4107,2548.5,2548.4,0.39234]
[1726823056536,3.2078,2548.8,2548.7,0.39229]
[1726823057426,3.60008,2548.8,2548.7,0.39229]
[1726823057632,3.2078,2548.8,2548.7,0.39229]
[1726823059438,0.3902,2548.9,2548.8,0.39228]
[1726823059836,0.78246,2548.9,2548.8,0.39228]
[1726823061535,0.78246,2548.9,2548.7,0.39229]
[1726823061837,0.39228,2548.8,2548.6,0.3923]
[1726823062037,0.39228,2548.8,2548.7,3.73729]
[1726823062435,0.78247,2548.9,2548.7,3.73729]
[1726823067051,0.3902,2548.9,2548.7,3.73729]
[1726823067849,0.3902,2548.9,2548.7,0.39229]
[1726823068146,0.3902,2548.9,2548.7,3.73729]
[1726823069742,0.3902,2548.9,2548.7,3.345]
[1726823069947,0.39228,2548.8,2548.6,3.6001]
[1726823070250,0.3882,2548.7,2548.6,3.60011]
[1726823072849,0.39228,2548.8,2548.6,4.62912157]
[1726823073352,0.39228,2548.8,2548.6,4.23681157]
[1726823074253,0.39228,2548.8,2548.6,4.62911157]
[1726823077847,0.39228,2548.8,2548.6,1.42131157]
[1726823080056,0.78247,2548.9,2548.7,0.39229]
[1726823080240,0.3902,2548.9,2548.7,0.39229]
[1726823081153,0.78247,2548.9,2548.7,0.39229]
[1726823081554,0.78247,2548.9,2548.6,1.42131157]
[1726823083552,0.78247,2548.9,2548.7,0.39229]
[1726823083954,0.39228,2548.8,2548.6,1.42131157]
[1726823084652,0.78247,2548.9,2548.6,0.3923]
[1726823085759,0.78247,2548.9,2548.6,3.6283]
[1726823086660,0.39228,2548.8,2548.6,3.6283]
[1726823087255,0.78247,2548.9,2548.7,0.39229]
[1726823087759,0.78247,2548.9,2548.6,3.6283]
[1726823088860,0.78247,2548.9,2548.7,0.39229]
[1726823089763,0.39228,2548.8,2548.6,3.6283]
[1726823090348,0.78247,2548.9,2548.7,0.39229]
[1726823090564,0.78247,2548.9,2548.6,3.6283]
[1726823091261,0.39228,2548.8,2548.6,3.6283]
[1726823091461,0.39228,2548.8,2548.6,4.65731157]
[1726823094367,0.78247,2548.9,2548.7,0.39229]
[1726823094558,0.39228,2548.8,2548.6,4.65731157]
[1726823095264,0.39228,2548.8,2548.7,1.02901157]
[1726823096658,0.3902,2548.9,2548.7,1.02901157]
[1726823096855,0.39228,2548.8,2548.7,1.02901157]
[1726823099461,0.39228,2548.8,2548.5,4.79812]
[1726823100368,1.37087,2548.9,2548.5,4.79812]
[1726823100570,0.39231,2548.6,2548.5,4.4058]
[1726823100773,0.3902,2548.9,2548.5,1.1698]
[1726823100969,0.39231,2548.6,2548.5,1.1698]
[1726823101462,0.76581,2548.6,2548.5,1.1698]
[1726823101668,0.39232,2548.5,2548.2,0.39236]
[1726823101975,0.80433,2548.5,2548.2,3.62837]
[1726823102479,0.80433,2548.5,2548.2,3.62836]
[1726823105171,0.412,2548.5,2548.2,3.236]
[1726823105475,0.80433,2548.5,2548.2,3.236]
[1726823105674,0.80433,2548.5,2548.2,3.62837]
[1726823106773,0.80433,2548.5,2548.3,3.28588141]
[1726823106976,0.80433,2548.5,2548.4,1.74139574]
[1726823107380,0.80433,2548.5,2548.4,2.77052933]
[1726823107678,0.80433,2548.5,2548.4,1.74141416]
[1726823107881,0.76582,2548.6,2548.4,2.12751416]
[1726823108069,0.76582,2548.6,2548.5,1.40951276]
[1726823110370,0.76582,2548.6,2548.5,0.3804]
[1726823110978,1.7466,2548.6,2548.5,0.3804]
[1726823111181,0.39232,2548.5,2548.4,1.41521276]
[1726823111384,0.39232,2548.5,2548.4,3.15616889]
[1726823112178,0.39232,2548.5,2548.4,2.77006889]
[1726823112385,0.80352,2548.5,2548.4,1.02911276]
[1726823113878,0.80352,2548.5,2548.3,1.42711276]
[1726823114688,0.39234,2548.4,2548.3,0.398]
[1726823118299,0.39235,2548.3,2548.2,1.02911276]
[1726823118481,0.76575,2548.3,2548.2,1.02911276]
[1726823118688,0.39237,2548.2,2548.1,1.40431276]
[1726823118890,0.39237,2548.2,2548.1,3.14456078]
[1726823119418,0.3734,2548.3,2548.1,1.40431276]
[1726823119582,0.76576,2548.3,2548.1,1.40431276]
[1726823120698,0.39237,2548.2,2548.1,1.40431276]
[1726823121581,0.39237,2548.2,2548.1,0.3752]
[1726823121790,0.76577,2548.3,2548.1,0.3752]
[1726823122187,0.76577,2548.3,2547.7,5.22711276]
[1726823122188,0.39243,2547.8,2547.7,4.198]
[1726823122391,0.39243,2547.8,2547.6,0.3807]
[1726823122591,0.80091,2548.0,2547.6,1.16506]
[1726823122891,0.80091,2548.0,2547.6,0.7726]
[1726823123393,0.39242,2547.9,2547.6,1.16505]
[1726823124689,0.4085,2548.0,2547.7,0.39245]
[1726823124690,0.80091,2548.0,2547.7,0.39245]
[1726823125004,0.80091,2548.0,2547.6,1.16505]
[1726823125198,0.39242,2547.9,2547.6,1.16505]
[1726823126496,0.80091,2548.0,2547.7,0.39244]
[1726823127494,0.39242,2547.9,2547.6,1.16505]
[1726823128699,0.39242,2547.9,2547.8,1.02911276]
[1726823129396,0.4085,2548.0,2547.8,1.02911276]
[1726823129591,0.80091,2548.0,2547.8,1.02911276]
[1726823129792,0.80091,2548.0,2547.9,0.3876]
[1726823134696,0.4085,2548.0,2547.9,0.3876]
[1726823134903,0.3924,2548.1,2547.9,0.3876]
[1726823135205,0.7967,2548.1,2547.9,0.3876]
[1726823135600,0.3924,2548.0,2547.9,0.3876]
[1726823139704,1.3853,2548.1,2547.7,3.2078]
[1726823139913,0.378,2547.9,2547.7,3.2078]
[1726823140509,0.3973,2547.8,2547.7,3.2078]
[1726823141101,0.39245,2547.7,2547.6,3.9543]
[1726823141313,0.39245,2547.7,2547.6,3.182]
[1726823141811,0.39245,2547.7,2547.5,0.3914]
[1726823142013,0.39246,2547.6,2547.5,0.3914]
[1726823142506,0.3973,2547.8,2547.5,0.3914]
[1726823142718,0.39246,2547.7,2547.5,0.3914]
[1726823144206,0.39246,2547.7,2547.6,0.3919]
[1726823145410,0.3973,2547.8,2547.6,0.3919]
[1726823145617,0.78974,2547.8,2547.6,0.3919]
[1726823145914,0.78974,2547.8,2547.6,1.42101276]
[1726823146516,0.3973,2547.8,2547.6,1.42101276]
[1726823146904,0.39245,2547.7,2547.6,1.42101276]
[1726823147312,0.78974,2547.8,2547.6,1.42101276]
[1726823147505,0.39245,2547.7,2547.6,1.42101276]
[1726823147719,0.78974,2547.8,2547.6,1.42101276]
[1726823151519,0.39246,2547.6,2547.5,1.02911276]
[1726823151717,0.3973,2547.8,2547.4,1.02911276]
[1726823152017,1.35907,2547.9,2547.3,3.9944]
[1726823152018,0.4083,2547.5,2547.3,3.9944]
[1726823153114,0.80078,2547.5,2547.3,3.9944]
[1726823153414,0.4083,2547.5,2547.3,3.9944]
[1726823154017,0.4083,2547.5,2547.4,0.39249]
[1726823155421,0.4083,2547.5,2547.3,3.6019]
[1726823155925,0.4083,2547.5,2547.3,4.63101276]
[1726823156125,0.4083,2547.5,2547.3,5.02351276]
[1726823156326,1.35906,2547.9,2547.4,0.39249]
[1726823156525,0.39247,2547.6,2547.5,0.4123]
[1726823156722,0.79113,2547.8,2547.6,0.39245]
[1726823156918,0.79113,2547.8,2547.7,0.3839]
[1726823158120,0.3987,2547.8,2547.7,0.3839]
[1726823158526,0.79113,2547.8,2547.7,0.3839]
[1726823158732,0.3987,2547.8,2547.7,0.3839]
[1726823159030,0.3987,2547.8,2547.7,1.41301276]
[1726823159255,0.79113,2547.8,2547.7,1.41301276]
[1726823160135,0.3987,2547.8,2547.7,1.41301276]
[1726823160531,0.3987,2547.8,2547.7,3.15199088]
[1726823160833,0.3987,2547.8,2547.7,1.41301276]
[1726823161224,0.79113,2547.8,2547.7,3.15217176]
[1726823161429,0.3987,2547.8,2547.7,1.80546276]
[1726823161638,0.3987,2547.8,2547.7,1.41301276]
[1726823161831,0.98095,2548.2,2547.7,1.41301276]
[1726823162132,0.39242,2547.9,2547.8,0.4134]
[1726823162327,0.39242,2547.9,2547.8,1.44251276]
[1726823162530,0.3738,2548.1,2547.8,1.44251276]
[1726823162738,0.39242,2547.9,2547.8,1.44251276]
[1726823163231,4.31722,2547.9,2547.8,1.44251276]
[1726823163836,0.39242,2547.9,2547.8,1.44251276]
[1726823164229,4.31722,2547.9,2547.8,1.44251276]
[1726823164537,4.31722,2547.9,2547.8,1.02911276]
[1726823165226,4.31722,2547.9,2547.7,1.02861647]
[1726823165227,0.39243,2547.8,2547.7,1.02861647]
[1726823165427,0.77283,2547.8,2547.7,2.76883432]
[1726823165647,0.77283,2547.8,2547.7,2.76885509]
[1726823166133,0.77283,2547.8,2547.7,1.7402175]
[1726823166433,0.77283,2547.8,2547.7,3.28470317]
[1726823167332,1.15423,2547.8,2547.7,3.28470317]
[1726823168336,1.15423,2547.8,2547.7,1.7402175]
[1726823168539,0.39245,2547.7,2547.6,1.54448567]
[1726823168840,0.39245,2547.7,2547.6,3.28573334]
[1726823169330,3.2078,2548.0,2547.6,3.28573334]
[1726823169540,0.39243,2547.8,2547.7,3.55476974]
[1726823169836,0.39243,2547.8,2547.7,2.52554767]
[1726823170040,0.39243,2547.8,2547.7,4.07003334]
[1726823170231,0.39243,2547.8,2547.7,3.55474099]
[1726823170829,0.39243,2547.8,2547.7,2.52554767]
[1726823171530,0.39243,2547.8,2547.7,1.81349688]
[1726823172726,0.39243,2547.8,2547.7,3.55468155]
[1726823173237,0.39243,2547.8,2547.7,4.06997034]
[1726823173636,0.39243,2547.8,2547.7,2.52548467]
[1726823173836,0.39243,2547.8,2547.7,0.7843]
[1726823175035,0.79933,2547.8,2547.7,0.7843]
[1726823175432,0.39245,2547.7,2547.5,1.42167313]
[1726823175739,0.79115,2547.7,2547.5,1.42167313]
[1726823175956,0.79115,2547.7,2547.5,0.39248]
[1726823176239,0.79115,2547.7,2547.5,1.42167313]
[1726823176739,0.79115,2547.7,2547.5,1.42166313]
[1726823176933,0.79115,2547.7,2547.5,0.39247]
[1726823177130,0.3987,2547.7,2547.4,1.43919313]
[1726823177534,0.3987,2547.7,2547.5,1.42165313]
[1726823177736,0.79934,2547.8,2547.5,1.42165313]
[1726823178439,0.79934,2547.8,2547.4,1.43919313]
[1726823178643,0.79934,2547.8,2547.6,0.39246]
[1726823178829,0.79933,2547.8,2547.7,0.7735]
[1726823181236,0.79933,2547.8,2547.7,1.1717]
[1726823182143,0.79933,2547.8,2547.7,4.45786165]
[1726823183039,3.60022,2547.9,2547.7,4.45786165]
[1726823183238,3.60022,2547.9,2547.8,1.02958336]
[1726823184240,3.60022,2547.9,2547.8,3.28656545]
[1726823185239,3.2078,2547.9,2547.8,3.28656545]
[1726823185744,3.60022,2547.9,2547.8,3.28656545]
[1726823185938,3.60022,2547.9,2547.8,1.74207978]
[1726823187142,3.2078,2547.9,2547.8,3.67899545]
[1726823187442,3.60022,2547.9,2547.8,3.28656545]
[1726823188143,3.2078,2547.9,2547.8,3.28656545]
[1726823188343,0.98091,2548.3,2547.8,3.28656545]
[1726823188344,0.39241,2548.0,2547.8,3.28656545]
[1726823188640,0.39241,2548.0,2547.9,3.28656545]
[1726823189049,0.39241,2548.0,2547.7,1.1717]
[1726823189347,0.39241,2548.0,2547.7,1.56414]
[1726823189544,0.39243,2547.8,2547.7,1.1717]
[1726823189748,0.39241,2548.0,2547.7,1.56414]
[1726823191948,0.7884,2548.1,2547.8,0.39243]
[1726823192145,0.396,2548.1,2547.7,2.20152029]
[1726823192357,0.39241,2548.0,2547.7,2.90796029]
[1726823193043,0.396,2548.1,2547.7,2.90796029]
[1726823193044,0.7884,2548.1,2547.8,0.39243]
[1726823193241,0.3924,2548.0,2547.8,0.39243]
[1726823193645,3.2078,2548.0,2547.7,2.51552029]
[1726823193856,3.60021,2548.0,2547.7,2.90796029]
[1726823194243,3.60021,2548.0,2547.7,2.51552029]
[1726823194447,0.39241,2548.0,2547.7,2.51552029]
[1726823194749,0.39241,2548.0,2547.7,2.90796029]
[1726823194951,3.60021,2548.0,2547.7,2.90796029]
[1726823195452,3.2078,2548.0,2547.7,2.51552029]
[1726823195651,0.39242,2547.9,2547.7,1.4857]
[1726823196045,0.3928,2547.8,2547.7,1.4857]
[1726823197149,0.3928,2547.8,2547.7,5.26480284]
[1726823198655,0.3928,2547.8,2547.7,3.22779041]
[1726823199356,0.3928,2547.8,2547.7,3.62024041]
[1726823199558,0.3928,2547.8,2547.7,3.62050081]
[1726823199857,0.3928,2547.8,2547.7,5.65751324]
[1726823200357,0.3928,2547.8,2547.7,5.26506324]
[1726823201158,0.3928,2547.8,2547.7,9.14259044]
[1726823201357,0.3928,2547.8,2547.7,5.97151324]
[1726823201555,0.3928,2547.8,2547.7,3.54205081]